[Event "30th Abu Dhabi Festival A-Open 2024"]
[Site "Abu Dhabi"]
[Date "2024.08.24"]
[Round "9.5"]
[White "Diaz Villagran, Robert"]
[Black "Fadi, Marko"]
[Result "0-1"]
[ECO "C54"]
[WhiteElo "2268"]
[BlackElo "2221"]
[Annotator "RC"]
[PlyCount "140"]
[EventDate "2024.08.15"]
[EventType "swiss"]
[EventCountry "UAE"]
[SourceTitle "playchess.com"]
[Source "ChessBase"]
[SourceQuality "1"]
[TimeControl "5400+30"]

1. e4 {[%emt 0:00:03]} e5 {[%emt 0:01:53]} 2. Nf3 {[%emt 0:00:15]} Nc6 {[%emt 0:00:05]} 3. Bc4 {[%emt 0:01:06]} Bc5 {[%emt 0:00:31]} 4. O-O {[%emt 0:00:42]} Nf6 {[%emt 0:00:23]} 5. d3 {[%emt 0:00:19]} d6 {[%emt 0:01:48]} 6. c3 {[%emt 0:00:21]} O-O {[%emt 0:02:30]} 7. h3 {[%emt 0:06:03]} a6 {[%emt 0:03:10]} 8. a4 {[%emt 0:00:18]} Ba7 {[%emt 0:01:40]} 9. Re1 {[%emt 0:00:24]} h6 {[%emt 0:06:26]} 10. Nbd2 {[%emt 0:05:00]} Re8 {[%emt 0:01:52]} 11. b4 {[%emt 0:00:30]} Be6 {[%emt 0:02:21]} 12. Bxe6 {[%emt 0:00:16]} Rxe6 {[%emt 0:00:42]} 13. Bb2 {[%emt 0:03:27]} Nh5 {[%emt 0:16:21]} 14. Nf1 {[%emt 0:11:26]} Nf4 {[%emt 0:03:21]} 15. Bc1 {[%emt 0:00:44]} Qf6 {[%emt 0:08:29]} 16. Ra2 {[%emt 0:16:47]} Rd8 {[%emt 0:05:07]} 17. Bxf4 {[%emt 0:11:13]} Qxf4 {[%emt 0:01:04]} 18. g3 {[%emt 0:00:37]} Qf6 {[%emt 0:00:18]} 19. Ne3 {[%emt 0:00:08]} Ree8 {[%emt 0:11:59]} 20. Kg2 {[%emt 0:08:52]} Ne7 {[%emt 0:01:20]} 21. Rae2 {[%emt 0:05:10]} Qe6 {[%emt 0:01:37]} 22. Qb1 {[%emt 0:04:35]} c6 {[%emt 0:09:16]} 23. d4 {[%emt 0:00:58]} Rc8 {[%emt 0:02:20]} 24. Qd3 {[%emt 0:06:02]} Red8 {[%emt 0:03:28]} 25. a5 {[%emt 0:02:26]} Ng6 {[%emt 0:05:28]} 26. h4 {[%emt 0:06:30]} Ne7 {[%emt 0:05:11]} 27. h5 {[%emt 0:01:18]} Kf8 {[%emt 0:02:24]} 28. Rd2 {[%emt 0:01:32]} exd4 {[%emt 0:01:33]} 29. cxd4 {[%emt 0:00:25]} Kg8 {[%emt 0:00:27]} 30. Rde2 {[%emt 0:01:28]} Re8 {[%emt 0:00:53]} 31. Nc4 {[%emt 0:02:05]} Qd7 {[%emt 0:01:13]} 32. e5 {[%emt 0:00:50]} dxe5 {[%emt 0:00:25]} 33. Ncxe5 {[%emt 0:00:45]} Qf5 {[%emt 0:00:40]} 34. Qb3 {[%emt 0:02:05]} Nd5 {[%emt 0:00:17]} 35. Re4 {[%emt 0:01:26]} Red8 {[%emt 0:00:48]} 36. g4 {[%emt 0:00:19]} Qf6 {[%emt 0:00:19]} 37. Nd3 {[%emt 0:00:57]} Bb8 {[%emt 0:00:28]} 38. Nfe5 {[%emt 0:00:13]} Bd6 {[%emt 0:00:47]} 39. f4 {[%emt 0:00:21]} Qe6 {[%emt 0:00:28]} 40. Qb2 {[%emt 0:00:57]} Bxe5 {[%emt 0:00:25]} 41. Nxe5 {[%emt 0:00:00]} Nf6 {[%emt 0:00:00]} 42. R4e3 {[%emt 0:01:06]} Nxg4 {[%emt 0:00:00]} 43. Rg3 {[%emt 0:00:04]} Qd5+ {[%emt 0:00:51]} 44. Kh3 {[%emt 0:00:11]} Nf6 {[%emt 0:00:23]} 45. Qe2 {[%emt 0:00:08]} Qe6+ {[%emt 0:00:32]} 46. Kh2 {[%emt 0:00:10]} Rxd4 {[%emt 0:01:11]} 47. Reg1 {[%emt 0:00:11]} Ne8 {[%emt 0:00:34]} 48. Qg2 {[%emt 0:00:09]} Qf6 {[%emt 0:00:10]} 49. Ng4 {[%emt 0:00:20]} Qxf4 {[%emt 0:00:13]} 50. Rf1 {[%emt 0:00:01]} Qd6 {[%emt 0:00:58]} 51. Qf3 {[%emt 0:00:33]} Rc7 {[%emt 0:00:24]} 52. Re1 {[%emt 0:01:11]} Kf8 {[%emt 0:00:14]} 53. Ne5 {[%emt 0:01:13]} Nf6 {[%emt 0:00:37]} 54. Kg2 {[%emt 0:02:06]} Qd5 {[%emt 0:00:22]} 55. Kh3 {[%emt 0:00:29]} Qxf3 {[%emt 0:00:11]} 56. Rxf3 {[%emt 0:00:01]} Rxb4 {[%emt 0:00:53]} 57. Rd1 {[%emt 0:00:13]} Re4 {[%emt 0:00:45]} 58. Nd3 {[%emt 0:00:21]} Rd7 {[%emt 0:00:14]} 59. Rb1 {[%emt 0:00:01]} Rde7 {[%emt 0:00:47]} 60. Nc5 {[%emt 0:00:21]} R4e5 {[%emt 0:00:10]} 61. Nxb7 {[%emt 0:00:07]} Rxh5+ {[%emt 0:00:09]} 62. Kg2 {[%emt 0:01:02]} Rg5+ {[%emt 0:00:39]} 63. Kh3 {[%emt 0:00:01]} Ne4 {[%emt 0:00:39]} 64. Nd8 {[%emt 0:00:33]} Rb5 {[%emt 0:00:42]} 65. Rfb3 {[%emt 0:01:16]} Rc7 {[%emt 0:00:36]} 66. Rxb5 {[%emt 0:01:14]} cxb5 {[%emt 0:00:06]} 67. Rb4 {[%emt 0:00:09]} Ke7 {[%emt 0:00:41]} 68. Nxf7 {[%emt 0:00:07]} Nf2+ {[%emt 0:00:20]} 69. Kg2 {[%emt 0:00:01]} Kxf7 {[%emt 0:00:12]} 70. Kxf2 {[%emt 0:00:04]} Rc4 {[%emt 0:00:13]} 0-1

[Event "30th Abu Dhabi Festival A-Open 2024"]
[Site "Abu Dhabi"]
[Date "2024.08.24"]
[Round "9.6"]
[White "Aditya Varun Gampa"]
[Black "Dere Pushkar"]
[Result "0-1"]
[ECO "B23"]
[WhiteElo "2261"]
[BlackElo "2217"]
[Annotator "RC"]
[PlyCount "102"]
[EventDate "2024.08.15"]
[EventType "swiss"]
[EventCountry "UAE"]
[SourceTitle "playchess.com"]
[Source "ChessBase"]
[SourceQuality "1"]
[TimeControl "5400+30"]

1. e4 {[%emt 0:10:07]} c5 {[%emt 0:00:09]} 2. Nc3 {[%emt 0:02:10]} g6 {[%emt 0:00:15]} 3. d4 {[%emt 0:03:44]} cxd4 {[%emt 0:00:04]} 4. Qxd4 {[%emt 0:00:05]} Nf6 {[%emt 0:00:03]} 5. Be3 {[%emt 0:00:08]} Nc6 {[%emt 0:00:37]} 6. Qd2 {[%emt 0:00:01]} Bg7 {[%emt 0:02:36]} 7. O-O-O {[%emt 0:00:38]} Ng4 {[%emt 0:03:54]} 8. Bf4 {[%emt 0:00:25]} Qb6 {[%emt 0:07:03]} 9. f3 {[%emt 0:08:42]} Nge5 {[%emt 0:08:24]} 10. Bh6 {[%emt 0:01:28]} Bxh6 {[%emt 0:05:43]} 11. Qxh6 {[%emt 0:00:03]} d6 {[%emt 0:01:00]} 12. Qg7 {[%emt 0:02:34]} Rf8 {[%emt 0:00:11]} 13. Qxh7 {[%emt 0:00:52]} Be6 {[%emt 0:01:12]} 14. Qh6 {[%emt 0:00:53]} Bc4 {[%emt 0:07:59]} 15. Nge2 {[%emt 0:12:26]} Rc8 {[%emt 0:01:08]} 16. Qd2 {[%emt 0:02:56]} a5 {[%emt 0:10:50]} 17. h3 {[%emt 0:12:20]} Nb4 {[%emt 0:01:34]} 18. Kb1 {[%emt 0:01:21]} Bxa2+ {[%emt 0:04:38]} 19. Nxa2 {[%emt 0:01:46]} Rxc2 {[%emt 0:00:17]} 20. Qd4 {[%emt 0:07:32]} Nc4 {[%emt 0:02:33]} 21. Nxb4 {[%emt 0:00:36]} Rxb2+ {[%emt 0:00:19]} 22. Qxb2 {[%emt 0:01:07]} Nxb2 {[%emt 0:00:26]} 23. Nd5 {[%emt 0:30:06]} Qb3 {[%emt 0:01:39]} 24. Nc1 {[%emt 0:00:00]} Qxd1 {[%emt 0:01:20]} 25. Bb5+ {[%emt 0:00:00]} Kd8 {[%emt 0:00:07]} 26. Rxd1 {[%emt 0:00:00]} Nxd1 {[%emt 0:00:04]} 27. Kc2 {[%emt 0:00:00]} e6 {[%emt 0:01:28]} 28. Kxd1 {[%emt 0:00:00]} exd5 {[%emt 0:00:04]} 29. exd5 {[%emt 0:00:00]} Kc7 {[%emt 0:39:23]} 30. Nb3 {[%emt 0:00:00]} Kb6 {[%emt 0:00:00]} 31. Ba4 {[%emt 0:00:00]} Rh8 {[%emt 0:00:00]} 32. Kc2 {[%emt 0:00:00]} f6 {[%emt 0:00:00]} 33. Nd2 {[%emt 0:00:00]} Kc5 {[%emt 0:00:00]} 34. Ne4+ {[%emt 0:00:00]} Kb4 {[%emt 0:00:00]} 35. Bb3 {[%emt 0:00:00]} a4 {[%emt 0:00:00]} 36. Ba2 {[%emt 0:00:00]} Rc8+ {[%emt 0:00:00]} 37. Kd3 {[%emt 0:00:00]} b5 {[%emt 0:00:00]} 38. Nxd6 {[%emt 0:00:00]} Rc1 {[%emt 0:04:30]} 39. Nf7 {[%emt 0:00:00]} Ka3 {[%emt 0:00:00]} 40. d6 {[%emt 0:00:00]} Kxa2 {[%emt 0:00:00]} 41. Ke2 {[%emt 0:00:00]} Rc5 {[%emt 0:00:00]} 42. d7 {[%emt 0:00:00]} Rd5 {[%emt 0:00:00]} 43. d8=Q {[%emt 0:00:00]} Rxd8 {[%emt 0:00:00]} 44. Nxd8 {[%emt 0:00:00]} a3 {[%emt 0:00:00]} 45. Nc6 {[%emt 0:00:00]} Kb2 {[%emt 0:00:00]} 46. Nb4 {[%emt 0:00:00]} a2 {[%emt 0:00:00]} 47. Nxa2 {[%emt 0:00:00]} Kxa2 {[%emt 0:00:00]} 48. h4 {[%emt 0:00:00]} b4 {[%emt 0:00:00]} 49. g4 {[%emt 0:00:00]} b3 {[%emt 0:00:00]} 50. h5 {[%emt 0:00:00]} gxh5 {[%emt 0:00:00]} 51. gxh5 {[%emt 0:00:00]} b2 {[%emt 0:00:00]} 0-1

[Event "30th Abu Dhabi Festival A-Open 2024"]
[Site "Abu Dhabi"]
[Date "2024.08.24"]
[Round "9.7"]
[White "Hamidov, Allahverdi"]
[Black "Shen, Fuyan"]
[Result "1-0"]
[ECO "D10"]
[WhiteElo "2253"]
[BlackElo "1826"]
[Annotator "RC"]
[PlyCount "143"]
[EventDate "2024.08.15"]
[EventType "swiss"]
[EventCountry "UAE"]
[SourceTitle "playchess.com"]
[Source "ChessBase"]
[SourceQuality "1"]
[TimeControl "5400+30"]

1. d4 {[%emt 0:00:07]} d5 {[%emt 0:00:09]} 2. c4 {[%emt 0:00:06]} c6 {[%emt 0:00:04]} 3. cxd5 {[%emt 0:00:36]} cxd5 {[%emt 0:00:05]} 4. Bf4 {[%emt 0:00:04]} Nc6 {[%emt 0:00:09]} 5. e3 {[%emt 0:00:06]} Nf6 {[%emt 0:00:12]} 6. Nc3 {[%emt 0:00:06]} Bf5 {[%emt 0:00:07]} 7. Qb3 {[%emt 0:00:40]} Na5 {[%emt 0:00:06]} 8. Qa4+ {[%emt 0:00:05]} Bd7 {[%emt 0:00:04]} 9. Bb5 {[%emt 0:00:25]} e6 {[%emt 0:04:52]} 10. Nf3 {[%emt 0:12:59]} a6 {[%emt 0:01:19]} 11. Bxd7+ {[%emt 0:00:31]} Nxd7 {[%emt 0:00:03]} 12. O-O {[%emt 0:00:57]} Be7 {[%emt 0:09:57]} 13. Rfc1 {[%emt 0:04:56]} b5 {[%emt 0:01:04]} 14. Qd1 {[%emt 0:00:14]} Rc8 {[%emt 0:00:29]} 15. Rc2 {[%emt 0:01:58]} Nc4 {[%emt 0:14:11]} 16. Rac1 {[%emt 0:01:04]} g5 {[%emt 0:07:38]} 17. Bg3 {[%emt 0:02:14]} h5 {[%emt 0:05:09]} 18. h3 {[%emt 0:02:02]} g4 {[%emt 0:09:57]} 19. hxg4 {[%emt 0:00:12]} hxg4 {[%emt 0:00:01]} 20. Ne1 {[%emt 0:03:07]} f5 {[%emt 0:03:14]} 21. Ne2 {[%emt 0:02:20]} Bh4 {[%emt 0:11:01]} 22. b3 {[%emt 0:11:11]} Bxg3 {[%emt 0:00:38]} 23. Nxg3 {[%emt 0:00:27]} Nd6 {[%emt 0:03:02]} 24. Rxc8 {[%emt 0:00:38]} Nxc8 {[%emt 0:00:02]} 25. Qc2 {[%emt 0:00:55]} Ke7 {[%emt 0:04:50]} 26. Nd3 {[%emt 0:00:40]} Nd6 {[%emt 0:02:02]} 27. Qc6 {[%emt 0:02:42]} Qa8 {[%emt 0:06:25]} 28. Nf4 {[%emt 0:02:10]} Rc8 {[%emt 0:02:16]} 29. Qxa8 {[%emt 0:01:23]} Rxa8 {[%emt 0:00:01]} 30. Rc6 {[%emt 0:00:27]} Nf8 {[%emt 0:00:20]} 31. Nd3 {[%emt 0:01:28]} Nd7 {[%emt 0:01:43]} 32. Nf4 {[%emt 0:02:24]} Nf8 {[%emt 0:00:13]} 33. Nd3 {[%emt 0:07:12]} Nd7 {[%emt 0:00:08]} 34. Ne2 {[%emt 0:00:57]} Nf7 {[%emt 0:05:04]} 35. Nef4 {[%emt 0:05:17]} Nd8 {[%emt 0:00:06]} 36. Rc2 {[%emt 0:01:06]} Kd6 {[%emt 0:01:54]} 37. f3 {[%emt 0:04:13]} gxf3 {[%emt 0:00:40]} 38. gxf3 {[%emt 0:00:02]} a5 {[%emt 0:01:38]} 39. Rg2 {[%emt 0:01:00]} Rc8 {[%emt 0:01:29]} 40. Rg8 {[%emt 0:00:36]} Ke7 {[%emt 0:00:33]} 41. Rh8 {[%emt 0:03:10]} b4 {[%emt 0:03:08]} 42. Kf1 {[%emt 0:01:36]} Ra8 {[%emt 0:03:09]} 43. Ke2 {[%emt 0:00:36]} Rc8 {[%emt 0:01:15]} 44. Kd2 {[%emt 0:00:08]} Rb8 {[%emt 0:00:19]} 45. Ne5 {[%emt 0:05:15]} Nxe5 {[%emt 0:00:52]} 46. dxe5 {[%emt 0:00:54]} Rb6 {[%emt 0:00:35]} 47. Ng6+ {[%emt 0:01:18]} Kf7 {[%emt 0:01:06]} 48. Rxd8 {[%emt 0:01:14]} Kxg6 {[%emt 0:01:11]} 49. f4 {[%emt 0:21:12]} Kf7 {[%emt 0:00:00]} 50. Ra8 {[%emt 0:00:00]} Rb5 {[%emt 0:00:00]} 51. Ra7+ {[%emt 0:00:00]} Ke8 {[%emt 0:00:08]} 52. Kd3 {[%emt 0:00:00]} Kd8 {[%emt 0:00:49]} 53. Kd4 {[%emt 0:00:00]} Ke8 {[%emt 0:00:27]} 54. Rc7 {[%emt 0:00:00]} a4 {[%emt 0:00:53]} 55. bxa4 {[%emt 0:00:00]} Ra5 {[%emt 0:00:08]} 56. Rc2 {[%emt 0:00:00]} Kd7 {[%emt 0:00:56]} 57. Rb2 {[%emt 0:00:00]} Rxa4 {[%emt 0:00:14]} 58. Kc5 {[%emt 0:00:00]} Ra3 {[%emt 0:00:33]} 59. Kxb4 {[%emt 0:00:00]} Rxe3 {[%emt 0:00:04]} 60. a4 {[%emt 0:00:00]} Kc6 {[%emt 0:01:10]} 61. Rc2+ {[%emt 0:00:00]} Kb7 {[%emt 0:00:31]} 62. Kc5 {[%emt 0:00:00]} Re4 {[%emt 0:00:12]} 63. Kd6 {[%emt 0:00:00]} Rxf4 {[%emt 0:00:49]} 64. Kxe6 {[%emt 0:00:00]} d4 {[%emt 0:00:20]} 65. Kf7 {[%emt 0:00:00]} Rh4 {[%emt 0:00:41]} 66. e6 {[%emt 0:00:00]} d3 {[%emt 0:00:30]} 67. Rd2 {[%emt 0:00:00]} Rh7+ {[%emt 0:00:33]} 68. Kg6 {[%emt 0:00:00]} Rc7 {[%emt 0:00:28]} 69. Kf6 {[%emt 0:00:00]} Rc6 {[%emt 0:00:30]} 70. Kf7 {[%emt 0:00:00]} Rc2 {[%emt 0:00:18]} 71. Rxd3 {[%emt 0:00:00]} Re2 {[%emt 0:00:30]} 72. e7 {[%emt 0:00:00]} 1-0

[Event "30th Abu Dhabi Festival A-Open 2024"]
[Site "Abu Dhabi"]
[Date "2024.08.24"]
[Round "9.8"]
[White "Kuandykuly, Danis"]
[Black "Ivanov, Alexander"]
[Result "0-1"]
[ECO "C48"]
[WhiteElo "2224"]
[BlackElo "2415"]
[Annotator "RC"]
[PlyCount "155"]
[EventDate "2024.08.15"]
[EventType "swiss"]
[EventCountry "UAE"]
[SourceTitle "playchess.com"]
[Source "ChessBase"]
[SourceQuality "1"]
[TimeControl "5400+30"]

1. e4 {[%emt 0:06:27]} e5 {[%emt 0:00:06]} 2. Nf3 {[%emt 0:00:11]} Nc6 {[%emt 0:00:05]} 3. Nc3 {[%emt 0:00:27]} Nf6 {[%emt 0:00:07]} 4. Bb5 {[%emt 0:00:05]} Nd4 {[%emt 0:00:48]} 5. Bc4 {[%emt 0:00:08]} c6 {[%emt 0:04:18]} 6. Nxe5 {[%emt 0:00:07]} Qe7 {[%emt 0:00:33]} 7. Nxf7 {[%emt 0:01:49]} d5 {[%emt 0:00:37]} 8. Nxh8 {[%emt 0:01:39]} dxc4 {[%emt 0:00:11]} 9. O-O {[%emt 0:10:51]} Ng4 {[%emt 0:10:09]} 10. h3 {[%emt 0:22:00]} Qh4 {[%emt 0:01:09]} 11. Ne2 {[%emt 0:10:30]} Nf3+ {[%emt 0:06:04]} 12. gxf3 {[%emt 0:03:35]} Qxh3 {[%emt 0:00:03]} 13. fxg4 {[%emt 0:00:16]} Bd6 {[%emt 0:00:20]} 14. e5 {[%emt 0:02:14]} Bxg4 {[%emt 0:04:19]} 15. Nf4 {[%emt 0:01:00]} Qh4 {[%emt 0:00:15]} 16. Ng2 {[%emt 0:00:24]} Qh3 {[%emt 0:02:59]} 17. Nf4 {[%emt 0:05:11]} Qh4 {[%emt 0:00:01]} 18. Qe1 {[%emt 0:01:15]} Bc5 {[%emt 0:00:32]} 19. Qe4 {[%emt 0:00:51]} Qg3+ {[%emt 0:00:31]} 20. Qg2 {[%emt 0:00:14]} Qxf4 {[%emt 0:00:05]} 21. d4 {[%emt 0:00:10]} Qf5 {[%emt 0:00:56]} 22. dxc5 {[%emt 0:00:33]} Bf3 {[%emt 0:00:08]} 23. Qxg7 {[%emt 0:06:51]} O-O-O {[%emt 0:00:17]} 24. Bf4 {[%emt 0:00:19]} Qxf4 {[%emt 0:00:41]} 25. Qg3 {[%emt 0:00:41]} Qh6 {[%emt 0:02:02]} 26. Qxf3 {[%emt 0:00:18]} Rg8+ {[%emt 0:00:00]} 27. Qg3 {[%emt 0:00:16]} Rxg3+ {[%emt 0:00:17]} 28. fxg3 {[%emt 0:00:05]} Qe3+ {[%emt 0:00:13]} 29. Kg2 {[%emt 0:00:28]} Qe4+ {[%emt 0:01:19]} 30. Kh3 {[%emt 0:01:35]} Qxe5 {[%emt 0:00:19]} 31. Rf8+ {[%emt 0:01:55]} Kc7 {[%emt 0:00:01]} 32. Rf7+ {[%emt 0:00:14]} Kb8 {[%emt 0:00:23]} 33. Raf1 {[%emt 0:01:08]} Qh5+ {[%emt 0:01:05]} 34. Kg2 {[%emt 0:00:01]} a5 {[%emt 0:00:10]} 35. Rd7 {[%emt 0:02:04]} Qe2+ {[%emt 0:00:28]} 36. Rf2 {[%emt 0:00:28]} Qe4+ {[%emt 0:00:31]} 37. Kh2 {[%emt 0:00:13]} Qe3 {[%emt 0:00:53]} 38. Rf8+ {[%emt 0:02:30]} Ka7 {[%emt 0:00:04]} 39. Rxh7 {[%emt 0:01:16]} Qe2+ {[%emt 0:03:24]} 40. Kh3 {[%emt 0:00:13]} Qe6+ {[%emt 0:00:20]} 41. g4 {[%emt 0:01:00]} Qe3+ {[%emt 0:00:11]} 42. Kh4 {[%emt 0:00:35]} Qe1+ {[%emt 0:00:17]} 43. Kh5 {[%emt 0:07:05]} Qh1+ {[%emt 0:00:09]} 44. Kg6 {[%emt 0:00:04]} Qe4+ {[%emt 0:00:04]} 45. Kh6 {[%emt 0:00:09]} Qxg4 {[%emt 0:00:35]} 46. Rff7 {[%emt 0:00:06]} Qh4+ {[%emt 0:00:50]} 47. Kg6 {[%emt 0:01:13]} Qe4+ {[%emt 0:01:07]} 48. Kg5 {[%emt 0:01:17]} Qe5+ {[%emt 0:00:07]} 49. Kh6 {[%emt 0:00:07]} Qe3+ {[%emt 0:00:30]} 50. Kg6 {[%emt 0:00:54]} Qe4+ {[%emt 0:00:05]} 51. Kf6 {[%emt 0:00:16]} Qd4+ {[%emt 0:00:36]} 52. Ke6 {[%emt 0:01:10]} Qd5+ {[%emt 0:00:05]} 53. Ke7 {[%emt 0:00:36]} Qxc5+ {[%emt 0:00:41]} 54. Ke8 {[%emt 0:00:15]} Qe5+ {[%emt 0:00:42]} 55. Re7 {[%emt 0:00:08]} Qb8+ {[%emt 0:00:15]} 56. Kf7 {[%emt 0:00:20]} Qf4+ {[%emt 0:00:17]} 57. Kg8 {[%emt 0:00:22]} Qb8+ {[%emt 0:01:08]} 58. Kg7 {[%emt 0:00:27]} Qg3+ {[%emt 0:00:44]} 59. Ng6 {[%emt 0:00:08]} c3 {[%emt 0:01:07]} 60. bxc3 {[%emt 0:03:48]} Qxc3+ {[%emt 0:00:04]} 61. Kh6 {[%emt 0:00:32]} Qd2+ {[%emt 0:00:36]} 62. Kh5 {[%emt 0:00:11]} Qd5+ {[%emt 0:00:52]} 63. Ne5 {[%emt 0:01:17]} Qd1+ {[%emt 0:02:06]} 64. Kg5 {[%emt 0:00:14]} Qxc2 {[%emt 0:00:25]} 65. Rxb7+ {[%emt 0:00:12]} Ka6 {[%emt 0:00:06]} 66. Rhc7 {[%emt 0:01:29]} Qxa2 {[%emt 0:01:00]} 67. Kf6 {[%emt 0:04:08]} a4 {[%emt 0:02:56]} 68. Ra7+ {[%emt 0:02:19]} Kb6 {[%emt 0:01:06]} 69. Rcb7+ {[%emt 0:00:04]} Kc5 {[%emt 0:00:10]} 70. Ra5+ {[%emt 0:00:02]} Kd4 {[%emt 0:00:15]} 71. Nxc6+ {[%emt 0:00:04]} Kc3 {[%emt 0:00:22]} 72. Rc5+ {[%emt 0:00:11]} Kd2 {[%emt 0:00:37]} 73. Rd7+ {[%emt 0:00:13]} Ke2 {[%emt 0:00:16]} 74. Re5+ {[%emt 0:00:19]} Kf2 {[%emt 0:00:45]} 75. Rf5+ {[%emt 0:00:04]} Kg3 {[%emt 0:00:38]} 76. Rg7+ {[%emt 0:00:12]} Kh4 {[%emt 0:00:10]} 77. Ne5 {[%emt 0:00:05]} Qe2 {[%emt 0:03:12]} 78. Nf3+ {[%emt 0:00:09]} 0-1

[Event "30th Abu Dhabi Festival A-Open 2024"]
[Site "Abu Dhabi"]
[Date "2024.08.24"]
[Round "9.9"]
[White "Saydaliev, Akobirkhon"]
[Black "Shamsuddin, Sayyid Usmon"]
[Result "1/2-1/2"]
[ECO "E60"]
[WhiteElo "2266"]
[BlackElo "2079"]
[Annotator "RC"]
[PlyCount "121"]
[EventDate "2024.08.15"]
[EventType "swiss"]
[EventCountry "UAE"]
[SourceTitle "playchess.com"]
[Source "ChessBase"]
[SourceQuality "1"]
[TimeControl "5400+30"]

1. d4 {[%emt 0:00:01]} Nf6 {[%emt 0:00:07]} 2. c4 {[%emt 0:00:01]} g6 {[%emt 0:00:11]} 3. Nf3 {[%emt 0:00:02]} Bg7 {[%emt 0:00:11]} 4. g3 {[%emt 0:00:02]} O-O {[%emt 0:00:19]} 5. Bg2 {[%emt 0:00:00]} d6 {[%emt 0:11:54]} 6. O-O {[%emt 0:00:41]} c5 {[%emt 0:02:08]} 7. dxc5 {[%emt 0:00:11]} dxc5 {[%emt 0:02:33]} 8. Ne5 {[%emt 0:01:58]} Qc7 {[%emt 0:14:36]} 9. Nd3 {[%emt 0:00:14]} Bf5 {[%emt 0:10:27]} 10. Bf4 {[%emt 0:01:58]} Qc8 {[%emt 0:00:55]} 11. Nc3 {[%emt 0:02:50]} Bh3 {[%emt 0:02:24]} 12. Rc1 {[%emt 0:04:28]} Bxg2 {[%emt 0:01:59]} 13. Kxg2 {[%emt 0:00:03]} Qc6+ {[%emt 0:01:50]} 14. f3 {[%emt 0:01:44]} Nbd7 {[%emt 0:03:10]} 15. e4 {[%emt 0:00:08]} e6 {[%emt 0:01:28]} 16. a3 {[%emt 0:00:51]} Nh5 {[%emt 0:01:45]} 17. Be3 {[%emt 0:00:33]} Ne5 {[%emt 0:06:02]} 18. g4 {[%emt 0:05:43]} Rfd8 {[%emt 0:16:31]} 19. Nxe5 {[%emt 0:01:19]} Bxe5 {[%emt 0:00:25]} 20. Nd5 {[%emt 0:02:50]} exd5 {[%emt 0:00:36]} 21. cxd5 {[%emt 0:00:05]} Qb5 {[%emt 0:01:03]} 22. gxh5 {[%emt 0:00:24]} Qxb2+ {[%emt 0:00:56]} 23. Rc2 {[%emt 0:00:20]} Qxa3 {[%emt 0:01:03]} 24. Bxc5 {[%emt 0:01:26]} Qa6 {[%emt 0:03:03]} 25. Qd2 {[%emt 0:02:45]} Rac8 {[%emt 0:02:57]} 26. Rfc1 {[%emt 0:01:49]} Qf6 {[%emt 0:01:05]} 27. Qf2 {[%emt 0:06:18]} Bf4 {[%emt 0:02:08]} 28. Rf1 {[%emt 0:00:28]} b6 {[%emt 0:04:18]} 29. Bd4 {[%emt 0:00:23]} Qg5+ {[%emt 0:00:37]} 30. Kh1 {[%emt 0:00:07]} Qxh5 {[%emt 0:00:55]} 31. Bf6 {[%emt 0:00:20]} Re8 {[%emt 0:00:39]} 32. Ra2 {[%emt 0:00:50]} Rc7 {[%emt 0:01:55]} 33. Rd1 {[%emt 0:00:30]} Qh3 {[%emt 0:04:35]} 34. Ra3 {[%emt 0:04:38]} Rec8 {[%emt 0:01:12]} 35. Qg2 {[%emt 0:02:29]} Qh5 {[%emt 0:00:41]} 36. h3 {[%emt 0:01:06]} Rc2 {[%emt 0:01:06]} 37. Qg4 {[%emt 0:00:17]} Rh2+ {[%emt 0:00:40]} 38. Kg1 {[%emt 0:00:02]} Rcc2 {[%emt 0:00:32]} 39. Bd4 {[%emt 0:00:36]} Rcg2+ {[%emt 0:00:29]} 40. Qxg2 {[%emt 0:00:01]} Rxg2+ 41. Kxg2 {[%emt 0:00:01]} Qg5+ {[%emt 0:00:04]} 42. Kf2 {[%emt 0:00:15]} Qg3+ {[%emt 0:01:12]} 43. Ke2 {[%emt 0:00:01]} Qg2+ {[%emt 0:00:32]} 44. Bf2 {[%emt 0:00:01]} Bg3 {[%emt 0:00:41]} 45. Rf1 {[%emt 0:00:05]} a5 {[%emt 0:00:19]} 46. Rb3 {[%emt 0:00:20]} Be5 {[%emt 0:00:44]} 47. Rxb6 {[%emt 0:00:25]} Qxh3 {[%emt 0:00:24]} 48. d6 {[%emt 0:00:56]} Qe6 {[%emt 0:00:20]} 49. Rc1 {[%emt 0:02:23]} Bxd6 {[%emt 0:00:16]} 50. Bd4 {[%emt 0:00:28]} Qa2+ {[%emt 0:00:59]} 51. Rb2 {[%emt 0:00:26]} Qe6 {[%emt 0:00:28]} 52. Rc6 {[%emt 0:00:17]} Qh3 {[%emt 0:00:29]} 53. Ke3 {[%emt 0:01:19]} Qd7 {[%emt 0:00:21]} 54. Rc4 {[%emt 0:00:49]} g5 {[%emt 0:00:43]} 55. Rbc2 {[%emt 0:01:14]} Bf4+ {[%emt 0:00:14]} 56. Kf2 {[%emt 0:00:29]} h6 {[%emt 0:00:28]} 57. Rc8+ {[%emt 0:00:49]} Kh7 {[%emt 0:00:01]} 58. R2c4 {[%emt 0:00:00]} Kg6 {[%emt 0:01:05]} 59. R8c6+ {[%emt 0:59:11]} Kh5 {[%emt 0:00:23]} 60. Be3 {[%emt 0:00:00]} Bxe3+ {[%emt 0:00:43]} 61. Kxe3 {[%emt 0:00:00]} 1/2-1/2

[Event "30th Abu Dhabi Festival A-Open 2024"]
[Site "Abu Dhabi"]
[Date "2024.08.24"]
[Round "9.10"]
[White "Poormosavi, Seyed Kanan"]
[Black "Md Imran"]
[Result "0-1"]
[ECO "A24"]
[WhiteElo "2034"]
[BlackElo "2225"]
[Annotator "RC"]
[PlyCount "80"]
[EventDate "2024.08.15"]
[EventType "swiss"]
[EventCountry "UAE"]
[SourceTitle "playchess.com"]
[Source "ChessBase"]
[SourceQuality "1"]
[TimeControl "5400+30"]

1. d4 {[%emt 0:00:02]} Nf6 {[%emt 0:03:25]} 2. c4 {[%emt 0:00:06]} d6 {[%emt 0:00:03]} 3. Nc3 {[%emt 0:00:09]} e5 {[%emt 0:00:05]} 4. Nf3 {[%emt 0:03:39]} exd4 {[%emt 0:01:00]} 5. Nxd4 {[%emt 0:00:55]} g6 {[%emt 0:00:45]} 6. g3 {[%emt 0:02:08]} Bg7 {[%emt 0:00:13]} 7. Bg2 {[%emt 0:00:09]} O-O {[%emt 0:00:07]} 8. O-O {[%emt 1:27:22]} c6 {[%emt 0:00:15]} 9. b3 {[%emt 0:00:00]} Re8 {[%emt 0:01:53]} 10. Bb2 {[%emt 0:00:00]} Na6 {[%emt 0:00:14]} 11. Qd2 {[%emt 0:00:00]} Nc5 {[%emt 0:01:49]} 12. Rad1 {[%emt 0:00:00]} a5 {[%emt 0:00:16]} 13. Rfe1 {[%emt 0:00:00]} Qb6 {[%emt 0:02:06]} 14. Ba3 {[%emt 0:00:00]} Ng4 {[%emt 0:06:08]} 15. h3 {[%emt 0:03:30]} Ne5 {[%emt 0:06:28]} 16. Nc2 {[%emt 0:00:30]} Nxb3 {[%emt 1:13:43]} 17. Na4 {[%emt 0:00:30]} Qxf2+ {[%emt 0:00:30]} 18. Kxf2 {[%emt 0:00:00]} Nxd2 {[%emt 0:00:30]} 19. Rxd2 {[%emt 0:01:00]} Nxc4 {[%emt 0:00:00]} 20. Rdd1 {[%emt 0:00:00]} Bf5 {[%emt 0:00:00]} 21. e4 {[%emt 0:00:00]} Be6 {[%emt 0:01:30]} 22. Bxd6 {[%emt 0:00:00]} Nxd6 {[%emt 0:00:00]} 23. Rxd6 {[%emt 0:00:00]} Bxa2 {[%emt 0:01:00]} 24. Rc1 {[%emt 0:02:30]} Bf8 {[%emt 0:00:00]} 25. Rd3 {[%emt 0:00:00]} b5 {[%emt 0:00:00]} 26. Nb2 {[%emt 0:00:00]} a4 {[%emt 0:00:00]} 27. e5 {[%emt 0:00:00]} a3 {[%emt 0:00:00]} 28. Nd1 {[%emt 0:00:00]} Rxe5 {[%emt 0:00:00]} 29. Bxc6 {[%emt 0:00:00]} Ra6 {[%emt 0:00:00]} 30. Bf3 {[%emt 0:00:00]} b4 31. Na1 {[%emt 0:03:30]} Bc5+ {[%emt 0:04:00]} 32. Kg2 {[%emt 0:00:00]} Be6 33. Nf2 {[%emt 0:01:00]} Be7 {[%emt 0:00:00]} 34. Ne4 {[%emt 0:00:00]} Bf5 {[%emt 0:00:00]} 35. Rd4 {[%emt 0:00:00]} Be6 {[%emt 0:00:00]} 36. Nd2 {[%emt 0:00:00]} Rb6 {[%emt 0:00:00]} 37. Rd3 {[%emt 0:00:38]} Bg5 {[%emt 0:03:00]} 38. Nc4 {[%emt 0:01:52]} Bxc1 {[%emt 0:00:30]} 39. Nxb6 {[%emt 0:00:30]} Bb2 {[%emt 0:00:30]} 40. Nc2 {[%emt 0:00:30]} b3 {[%emt 0:00:00]} 0-1